[Event "Late-Titled-Tuesday-Blitz-February-06-2024"]
[Site "Chess.com"]
[Date "2024.02.06"]
[Round "9"]
[White "dennisodessa"]
[Black "Eloist"]
[Result "1-0"]
[WhiteElo "2604"]
[BlackElo "2445"]
[TimeControl "180+1"]
[EndTime "15:44:29 PST"]
[Termination "dennisodessa won on time"]

1. d4 {[%clk 0:03:00.9]} 1... e6 {[%clk 0:03:00]} 2. c4 {[%clk 0:03:01]} 2...
Nf6 {[%clk 0:02:59.8]} 3. Nc3 {[%clk 0:03:01.5]} 3... Bb4 {[%clk 0:02:59]} 4.
Qc2 {[%clk 0:03:01.7]} 4... c5 {[%clk 0:02:58.6]} 5. dxc5 {[%clk 0:03:01]} 5...
O-O {[%clk 0:02:58.7]} 6. a3 {[%clk 0:02:59.8]} 6... Bxc5 {[%clk 0:02:58.9]} 7.
Nf3 {[%clk 0:03:00.4]} 7... b6 {[%clk 0:02:58.8]} 8. Bg5 {[%clk 0:03:01.1]} 8...
h6 {[%clk 0:02:49]} 9. Bh4 {[%clk 0:02:59.9]} 9... Be7 {[%clk 0:02:46]} 10. e3
{[%clk 0:03:00]} 10... Bb7 {[%clk 0:02:45.1]} 11. Be2 {[%clk 0:03:00.4]} 11...
d6 {[%clk 0:02:44.5]} 12. O-O {[%clk 0:03:00.1]} 12... Nbd7 {[%clk 0:02:44.4]}
13. Rfd1 {[%clk 0:03:00.6]} 13... a6 {[%clk 0:02:44.4]} 14. Rac1 {[%clk
0:02:58.9]} 14... Rc8 {[%clk 0:02:43.6]} 15. Nd4 {[%clk 0:02:56.4]} 15... Ne5
{[%clk 0:02:37.8]} 16. b3 {[%clk 0:02:55.6]} 16... Qc7 {[%clk 0:02:33.4]} 17.
Qb2 {[%clk 0:02:53.2]} 17... Rfd8 {[%clk 0:02:07.7]} 18. f3 {[%clk 0:02:41.1]}
18... Qb8 {[%clk 0:02:01.9]} 19. e4 {[%clk 0:02:39.1]} 19... Ng6 {[%clk
0:01:59]} 20. Bf2 {[%clk 0:02:38.5]} 20... Nf4 {[%clk 0:01:56.5]} 21. Bf1 {[%clk
0:02:38.7]} 21... d5 {[%clk 0:01:41.8]} 22. e5 {[%clk 0:02:30.9]} 22... Qxe5
{[%clk 0:01:33.1]} 23. cxd5 {[%clk 0:02:08.1]} 23... N6xd5 {[%clk 0:01:26]} 24.
Ne4 {[%clk 0:02:08.7]} 24... Nf6 {[%clk 0:01:02.9]} 25. Rxc8 {[%clk 0:02:03.2]}
25... Rxc8 {[%clk 0:01:00.6]} 26. Nxf6+ {[%clk 0:01:59.2]} 26... Bxf6 {[%clk
0:00:59.9]} 27. Qb1 {[%clk 0:01:59.2]} 27... Rd8 {[%clk 0:00:46.7]} 28. g3
{[%clk 0:01:41.9]} 28... Nd5 {[%clk 0:00:39.2]} 29. Re1 {[%clk 0:01:40.1]} 29...
Qd6 {[%clk 0:00:28.7]} 30. Rc1 {[%clk 0:01:32.9]} 30... Qxa3 {[%clk 0:00:26.6]}
31. Ne2 {[%clk 0:01:22.7]} 31... Nb4 {[%clk 0:00:21]} 32. Bxb6 {[%clk
0:01:18.8]} 32... Rb8 {[%clk 0:00:14.3]} 33. f4 {[%clk 0:01:08.7]} 33... Nd5
{[%clk 0:00:12.6]} 34. Ba7 {[%clk 0:01:06.5]} 34... Ra8 {[%clk 0:00:11.9]} 35.
Bf2 {[%clk 0:01:07.4]} 35... Qb4 {[%clk 0:00:11.1]} 36. Rc4 {[%clk 0:01:04.5]}
36... Qe7 {[%clk 0:00:10.2]} 37. Nd4 {[%clk 0:01:05.4]} 37... Rd8 {[%clk
0:00:09]} 38. Nc6 {[%clk 0:01:00.5]} 38... Bxc6 {[%clk 0:00:08.4]} 39. Rxc6
{[%clk 0:01:01.4]} 39... Nb4 {[%clk 0:00:07.9]} 40. Rb6 {[%clk 0:00:54.3]} 40...
a5 {[%clk 0:00:07.8]} 41. Qe4 {[%clk 0:00:50.9]} 41... Qd7 {[%clk 0:00:07.3]}
42. Rb5 {[%clk 0:00:48.9]} 42... Nc6 {[%clk 0:00:04.8]} 43. Rc5 {[%clk
0:00:41.5]} 43... Rc8 {[%clk 0:00:02.2]} 44. Bb5 {[%clk 0:00:39.6]} 1-0

[Event "Late-Titled-Tuesday-Blitz-February-06-2024"]
[Site "Chess.com"]
[Date "2024.02.06"]
[Round "9"]
[White "Quattroporte300"]
[Black "GoValya"]
[Result "1-0"]
[WhiteElo "2394"]
[BlackElo "2283"]
[TimeControl "180+1"]
[EndTime "15:44:29 PST"]
[Termination "Quattroporte300 won on time"]

1. e4 {[%clk 0:02:56]} 1... g6 {[%clk 0:02:59.1]} 2. d4 {[%clk 0:02:55.5]} 2...
Bg7 {[%clk 0:02:59.5]} 3. Nc3 {[%clk 0:02:54.2]} 3... b6 {[%clk 0:02:59.2]} 4.
Be3 {[%clk 0:02:51.3]} 4... Bb7 {[%clk 0:02:59.5]} 5. Qd2 {[%clk 0:02:48.7]}
5... d6 {[%clk 0:02:56.2]} 6. h4 {[%clk 0:02:45.7]} 6... h5 {[%clk 0:02:55.4]}
7. O-O-O {[%clk 0:02:44.9]} 7... Nd7 {[%clk 0:02:55.5]} 8. f3 {[%clk 0:02:43.9]}
8... a6 {[%clk 0:02:50.9]} 9. Nh3 {[%clk 0:02:40.6]} 9... c5 {[%clk 0:02:48.3]}
10. Ng5 {[%clk 0:02:28.4]} 10... Ngf6 {[%clk 0:02:34.3]} 11. e5 {[%clk
0:02:15.9]} 11... dxe5 {[%clk 0:02:21.8]} 12. dxe5 {[%clk 0:01:59.6]} 12... Nxe5
{[%clk 0:02:21.8]} 13. Qxd8+ {[%clk 0:01:59.6]} 13... Rxd8 {[%clk 0:02:21.3]}
14. Rxd8+ {[%clk 0:02:00]} 14... Kxd8 {[%clk 0:02:21.7]} 15. f4 {[%clk
0:02:00.5]} 15... Neg4 {[%clk 0:01:41.8]} 16. Nxf7+ {[%clk 0:02:00.6]} 16... Kc7
{[%clk 0:01:42.3]} 17. Nxh8 {[%clk 0:02:00.9]} 17... Bxh8 {[%clk 0:01:24.9]} 18.
Rh3 {[%clk 0:01:39.8]} 18... Bg7 {[%clk 0:01:13.7]} 19. Kd2 {[%clk 0:01:36.7]}
19... Kd6 {[%clk 0:00:49.6]} 20. Be2 {[%clk 0:01:33.1]} 20... b5 {[%clk
0:00:47.3]} 21. Bf3 {[%clk 0:01:14]} 21... Bc8 {[%clk 0:00:38.1]} 22. Rh1 {[%clk
0:01:11.5]} 22... Bf5 {[%clk 0:00:21.4]} 23. Rd1 {[%clk 0:01:08.9]} 23... b4
{[%clk 0:00:12.8]} 24. Na4 {[%clk 0:01:05.8]} 24... Nxe3 {[%clk 0:00:04.7]} 25.
Kxe3+ {[%clk 0:01:06.3]} 25... Kc7 {[%clk 0:00:04.9]} 26. Nxc5 {[%clk
0:00:55.4]} 26... Ng4+ {[%clk 0:00:05.2]} 27. Bxg4 {[%clk 0:00:53.4]} 27... Bxg4
{[%clk 0:00:06.1]} 28. Rd2 {[%clk 0:00:46.9]} 28... Bxb2 {[%clk 0:00:05.3]} 29.
Nxa6+ {[%clk 0:00:46.3]} 29... Kc6 {[%clk 0:00:04.6]} 30. Nxb4+ {[%clk
0:00:42.9]} 30... Kb5 {[%clk 0:00:05.1]} 31. Nd5 {[%clk 0:00:39.5]} 31... Ba3
{[%clk 0:00:05.6]} 32. Rd3 {[%clk 0:00:29.6]} 32... Bc5+ {[%clk 0:00:04.8]} 33.
Kd2 {[%clk 0:00:30.3]} 33... e6 {[%clk 0:00:02.7]} 34. Nf6 {[%clk 0:00:26.3]}
34... Bf5 {[%clk 0:00:02.4]} 35. Rb3+ {[%clk 0:00:26.1]} 35... Kc4 {[%clk
0:00:01.8]} 36. a4 {[%clk 0:00:17.9]} 1-0

[Event "Late-Titled-Tuesday-Blitz-February-06-2024"]
[Site "Chess.com"]
[Date "2024.02.06"]
[Round "9"]
[White "Adar_07"]
[Black "masnyszachistaaa"]
[Result "1-0"]
[WhiteElo "2722"]
[BlackElo "2546"]
[TimeControl "180+1"]
[EndTime "15:44:36 PST"]
[Termination "Adar_07 won on time"]

1. Nf3 {[%clk 0:03:00.9]} 1... Nf6 {[%clk 0:02:53.9]} 2. d4 {[%clk 0:02:59.9]}
2... b6 {[%clk 0:02:50.5]} 3. Bf4 {[%clk 0:02:58.6]} 3... Bb7 {[%clk 0:02:46]}
4. e3 {[%clk 0:02:58.6]} 4... g6 {[%clk 0:02:43.9]} 5. Nbd2 {[%clk 0:02:51.2]}
5... Bg7 {[%clk 0:02:44.2]} 6. Bd3 {[%clk 0:02:49.1]} 6... Nh5 {[%clk
0:02:33.5]} 7. Be5 {[%clk 0:02:48.3]} 7... Nf6 {[%clk 0:02:26.8]} 8. h3 {[%clk
0:02:44.8]} 8... O-O {[%clk 0:02:25]} 9. c3 {[%clk 0:02:43.3]} 9... d6 {[%clk
0:02:24.5]} 10. Bh2 {[%clk 0:02:42.1]} 10... Nbd7 {[%clk 0:02:24.1]} 11. O-O
{[%clk 0:02:41.6]} 11... c5 {[%clk 0:02:23.9]} 12. Qc2 {[%clk 0:02:40.3]} 12...
Rc8 {[%clk 0:02:12.6]} 13. Rfe1 {[%clk 0:02:37.4]} 13... Qc7 {[%clk 0:02:08.5]}
14. Rad1 {[%clk 0:02:32]} 14... Qb8 {[%clk 0:02:08.5]} 15. Qb1 {[%clk
0:02:20.7]} 15... Qa8 {[%clk 0:01:25.6]} 16. e4 {[%clk 0:02:17.1]} 16... cxd4
{[%clk 0:00:42.7]} 17. cxd4 {[%clk 0:02:18]} 17... Ne8 {[%clk 0:00:18.3]} 18. e5
{[%clk 0:02:15.2]} 18... dxe5 {[%clk 0:00:16.5]} 19. dxe5 {[%clk 0:02:16.1]}
19... Nc5 {[%clk 0:00:16.6]} 20. Bf1 {[%clk 0:02:11.6]} 20... Nc7 {[%clk
0:00:16.4]} 21. b4 {[%clk 0:02:07.1]} 21... Na4 {[%clk 0:00:11.5]} 22. Rc1
{[%clk 0:02:01.8]} 22... Ne6 {[%clk 0:00:10.1]} 23. Qb3 {[%clk 0:01:55.6]} 23...
Bc6 {[%clk 0:00:09.1]} 24. Ba6 {[%clk 0:01:51.9]} 24... Rc7 {[%clk 0:00:07.3]}
25. Rc2 {[%clk 0:01:46.4]} 25... b5 {[%clk 0:00:06.8]} 26. Rec1 {[%clk
0:01:44.2]} 26... Bd5 {[%clk 0:00:06.4]} 27. Qd3 {[%clk 0:01:37.8]} 27... Rxc2
{[%clk 0:00:06.4]} 28. Rxc2 {[%clk 0:01:38.7]} 28... Rd8 {[%clk 0:00:06.3]} 29.
Bxb5 {[%clk 0:01:27.1]} 29... Bxf3 {[%clk 0:00:03.6]} 30. Qxf3 {[%clk 0:01:28]}
30... Qxf3 {[%clk 0:00:03.5]} 31. gxf3 {[%clk 0:01:24.7]} 31... Nb6 {[%clk
0:00:03.5]} 32. Nb3 {[%clk 0:01:19.7]} 32... h5 {[%clk 0:00:02.7]} 33. a4 {[%clk
0:01:16.4]} 33... Nd4 {[%clk 0:00:03.1]} 34. Nxd4 {[%clk 0:01:16.1]} 34... Rxd4
{[%clk 0:00:04]} 35. a5 {[%clk 0:01:16.1]} 35... Nd5 {[%clk 0:00:02.4]} 36. Rc8+
{[%clk 0:01:15.8]} 36... Kh7 {[%clk 0:00:02.4]} 37. Bc4 {[%clk 0:01:16.3]} 37...
Nc3 {[%clk 0:00:01.9]} 38. Bxf7 {[%clk 0:01:14.8]} 38... Ne2+ {[%clk 0:00:01.8]}
39. Kf1 {[%clk 0:01:14.5]} 39... Rd2 {[%clk 0:00:02.1]} 40. b5 {[%clk
0:01:11.2]} 40... Nd4 {[%clk 0:00:02.3]} 41. b6 {[%clk 0:01:08.9]} 41... axb6
{[%clk 0:00:03.2]} 42. axb6 {[%clk 0:01:09.5]} 42... Rb2 {[%clk 0:00:03.4]} 43.
Rb8 {[%clk 0:01:02.9]} 43... Nxf3 {[%clk 0:00:03.1]} 44. Bf4 {[%clk 0:00:57.4]}
44... g5 {[%clk 0:00:03.3]} 45. Bxh5 {[%clk 0:00:56.1]} 45... gxf4 {[%clk
0:00:01.5]} 46. Bxf3 {[%clk 0:00:56.1]} 46... Bxe5 {[%clk 0:00:02.2]} 47. Re8
{[%clk 0:00:54.7]} 47... Bd4 {[%clk 0:00:02.2]} 48. Rxe7+ {[%clk 0:00:54.3]}
48... Kg6 {[%clk 0:00:02.6]} 49. b7 {[%clk 0:00:50.1]} 49... Rxf2+ {[%clk
0:00:01.9]} 50. Ke1 {[%clk 0:00:50.5]} 50... Rb2 {[%clk 0:00:02.3]} 51. Re8
{[%clk 0:00:47.6]} 51... Ba7 {[%clk 0:00:02.3]} 52. Ra8 {[%clk 0:00:47]} 52...
Bf2+ {[%clk 0:00:01.7]} 53. Kd1 {[%clk 0:00:46.9]} 1-0

[Event "Late-Titled-Tuesday-Blitz-February-06-2024"]
[Site "Chess.com"]
[Date "2024.02.06"]
[Round "9"]
[White "jefferyx"]
[Black "GMWSO"]
[Result "1-0"]
[WhiteElo "3012"]
[BlackElo "3083"]
[TimeControl "180+1"]
[EndTime "15:44:38 PST"]
[Termination "jefferyx won by checkmate"]

1. d4 {[%clk 0:03:00.9]} 1... Nf6 {[%clk 0:02:56.5]} 2. c4 {[%clk 0:03:00.9]}
2... e6 {[%clk 0:02:55.3]} 3. Nf3 {[%clk 0:03:01.2]} 3... d5 {[%clk 0:02:54.8]}
4. Nc3 {[%clk 0:03:01.2]} 4... a6 {[%clk 0:02:54.6]} 5. cxd5 {[%clk 0:02:59.7]}
5... exd5 {[%clk 0:02:55.5]} 6. Bg5 {[%clk 0:02:59.7]} 6... Be6 {[%clk
0:02:55.7]} 7. e3 {[%clk 0:03:00]} 7... Nbd7 {[%clk 0:02:56]} 8. Bd3 {[%clk
0:03:00.2]} 8... Bd6 {[%clk 0:02:56.4]} 9. O-O {[%clk 0:02:58.3]} 9... c6 {[%clk
0:02:56.4]} 10. Bf4 {[%clk 0:02:58.1]} 10... Qc7 {[%clk 0:02:54.4]} 11. Qd2
{[%clk 0:02:57.8]} 11... O-O {[%clk 0:02:54.2]} 12. h3 {[%clk 0:02:57.8]} 12...
Rfe8 {[%clk 0:02:54.1]} 13. Rfe1 {[%clk 0:02:56.9]} 13... Nb6 {[%clk 0:02:54.4]}
14. b3 {[%clk 0:02:03.7]} 14... g6 {[%clk 0:02:53.8]} 15. a4 {[%clk 0:02:01.1]}
15... a5 {[%clk 0:02:50.1]} 16. Rac1 {[%clk 0:01:49.2]} 16... Bxf4 {[%clk
0:02:23.9]} 17. exf4 {[%clk 0:01:48.8]} 17... Nh5 {[%clk 0:02:24.2]} 18. f5
{[%clk 0:01:42.8]} 18... Bd7 {[%clk 0:01:59.7]} 19. Ne5 {[%clk 0:01:39.5]} 19...
Bxf5 {[%clk 0:01:48.8]} 20. Bxf5 {[%clk 0:01:37.1]} 20... gxf5 {[%clk
0:01:49.7]} 21. Qg5+ {[%clk 0:01:20.1]} 21... Ng7 {[%clk 0:01:49.6]} 22. Nd3
{[%clk 0:01:13]} 22... Qd6 {[%clk 0:01:34.6]} 23. Nc5 {[%clk 0:01:09.7]} 23...
Nd7 {[%clk 0:01:30]} 24. Ne2 {[%clk 0:00:29]} 24... Nxc5 {[%clk 0:01:23.1]} 25.
dxc5 {[%clk 0:00:29.9]} 25... Qg6 {[%clk 0:01:23.1]} 26. Qd2 {[%clk 0:00:29.8]}
26... Ne6 {[%clk 0:01:12]} 27. Rc3 {[%clk 0:00:29.5]} 27... Kh8 {[%clk
0:01:09.5]} 28. Re3 {[%clk 0:00:29.6]} 28... Rg8 {[%clk 0:01:07.1]} 29. Rg3
{[%clk 0:00:28.7]} 29... Qf6 {[%clk 0:01:07.1]} 30. Nf4 {[%clk 0:00:27.2]} 30...
Rxg3 {[%clk 0:00:29.4]} 31. fxg3 {[%clk 0:00:28.1]} 31... Nxc5 {[%clk
0:00:29.2]} 32. Nh5 {[%clk 0:00:28]} 32... Nxb3 {[%clk 0:00:29.6]} 33. Qe2
{[%clk 0:00:22]} 33... Qd4+ {[%clk 0:00:25.3]} 34. Kh2 {[%clk 0:00:22.3]} 34...
Rg8 {[%clk 0:00:25.6]} 35. Qe7 {[%clk 0:00:20.4]} 35... f4 {[%clk 0:00:22.1]}
36. gxf4 {[%clk 0:00:14.2]} 36... Nc5 {[%clk 0:00:19.5]} 37. Qxf7 {[%clk
0:00:12.3]} 37... Ne4 {[%clk 0:00:17.5]} 38. Rxe4 {[%clk 0:00:11.5]} 38... dxe4
{[%clk 0:00:18.1]} 39. Nf6 {[%clk 0:00:11.7]} 39... Rxg2+ {[%clk 0:00:18]} 40.
Kxg2 {[%clk 0:00:12.6]} 40... Qd2+ {[%clk 0:00:14.3]} 41. Kg3 {[%clk 0:00:13.1]}
41... Qe3+ {[%clk 0:00:13.1]} 42. Kg4 {[%clk 0:00:13.5]} 42... Qf3+ {[%clk
0:00:13.8]} 43. Kg5 {[%clk 0:00:11.6]} 43... Qg3+ {[%clk 0:00:13.6]} 44. Ng4
{[%clk 0:00:11.6]} 44... Qa3 {[%clk 0:00:11.9]} 45. Qf6+ {[%clk 0:00:10.8]}
45... Kg8 {[%clk 0:00:11.8]} 46. Nh6# {[%clk 0:00:11.7]} 1-0

[Event "Late-Titled-Tuesday-Blitz-February-06-2024"]
[Site "Chess.com"]
[Date "2024.02.06"]
[Round "9"]
[White "crazy_but_lazy"]
[Black "Mackster23"]
[Result "1-0"]
[WhiteElo "2616"]
[BlackElo "2735"]
[TimeControl "180+1"]
[EndTime "15:44:38 PST"]
[Termination "crazy_but_lazy won by checkmate"]

1. d4 {[%clk 0:02:50.9]} 1... Nf6 {[%clk 0:02:59.9]} 2. c4 {[%clk 0:02:49.5]}
2... e6 {[%clk 0:02:59.8]} 3. Nc3 {[%clk 0:02:49.6]} 3... Bb4 {[%clk 0:02:59.5]}
4. e3 {[%clk 0:02:50]} 4... O-O {[%clk 0:02:57.5]} 5. Bd3 {[%clk 0:02:50.4]}
5... d5 {[%clk 0:02:57.4]} 6. a3 {[%clk 0:02:48.7]} 6... Bxc3+ {[%clk
0:02:57.3]} 7. bxc3 {[%clk 0:02:49.6]} 7... dxc4 {[%clk 0:02:57.7]} 8. Bxc4
{[%clk 0:02:50.5]} 8... c5 {[%clk 0:02:58.1]} 9. Nf3 {[%clk 0:02:51.1]} 9... Qc7
{[%clk 0:02:57.7]} 10. Be2 {[%clk 0:02:50.9]} 10... b6 {[%clk 0:02:58.1]} 11.
Bb2 {[%clk 0:02:50]} 11... Ba6 {[%clk 0:02:57.8]} 12. O-O {[%clk 0:02:49]} 12...
Bxe2 {[%clk 0:02:57.2]} 13. Qxe2 {[%clk 0:02:49.8]} 13... Nc6 {[%clk 0:02:57.5]}
14. Rac1 {[%clk 0:02:39]} 14... Na5 {[%clk 0:02:47]} 15. c4 {[%clk 0:02:37.5]}
15... cxd4 {[%clk 0:02:44.5]} 16. exd4 {[%clk 0:02:37.2]} 16... Rac8 {[%clk
0:02:43.1]} 17. Ne5 {[%clk 0:02:37.5]} 17... Nd7 {[%clk 0:02:40.2]} 18. Nxd7
{[%clk 0:02:15.5]} 18... Qxd7 {[%clk 0:02:40.2]} 19. Rfd1 {[%clk 0:02:16.1]}
19... Qa4 {[%clk 0:02:24.9]} 20. c5 {[%clk 0:01:54]} 20... Nc6 {[%clk
0:01:30.8]} 21. d5 {[%clk 0:01:40.6]} 21... exd5 {[%clk 0:01:29.6]} 22. Rxd5
{[%clk 0:01:41]} 22... Rfe8 {[%clk 0:01:24.9]} 23. Qd2 {[%clk 0:01:40]} 23...
Ne7 {[%clk 0:00:58.6]} 24. Rd4 {[%clk 0:00:44.9]} 24... Qb5 {[%clk 0:00:46.4]}
25. a4 {[%clk 0:00:38.7]} 25... Qb3 {[%clk 0:00:34.6]} 26. Rb4 {[%clk 0:00:30]}
26... Qe6 {[%clk 0:00:33.3]} 27. Re1 {[%clk 0:00:25.1]} 27... Qg6 {[%clk
0:00:22]} 28. Rbe4 {[%clk 0:00:15.8]} 28... Rc7 {[%clk 0:00:05]} 29. Rxe7 {[%clk
0:00:08.1]} 29... Rcxe7 {[%clk 0:00:03.5]} 30. Rxe7 {[%clk 0:00:08.7]} 30...
Qb1+ {[%clk 0:00:03.7]} 31. Bc1 {[%clk 0:00:09.3]} 31... Rc8 {[%clk 0:00:02.1]}
32. Re1 {[%clk 0:00:08.1]} 32... bxc5 {[%clk 0:00:02]} 33. Bb2 {[%clk
0:00:07.7]} 33... Qg6 {[%clk 0:00:02.2]} 34. h3 {[%clk 0:00:07.8]} 34... c4
{[%clk 0:00:02.5]} 35. Qc3 {[%clk 0:00:07.7]} 35... h5 {[%clk 0:00:02.3]} 36.
Re3 {[%clk 0:00:07.4]} 36... Qc6 {[%clk 0:00:02.5]} 37. Qxg7# {[%clk 0:00:06.3]}
1-0

[Event "Late-Titled-Tuesday-Blitz-February-06-2024"]
[Site "Chess.com"]
[Date "2024.02.06"]
[Round "9"]
[White "TimGrutter03"]
[Black "andrzej"]
[Result "1-0"]
[WhiteElo "2614"]
[BlackElo "2459"]
[TimeControl "180+1"]
[EndTime "15:44:38 PST"]
[Termination "TimGrutter03 won on time"]

1. e4 {[%clk 0:03:00.7]} 1... e5 {[%clk 0:03:00.6]} 2. Nf3 {[%clk 0:03:00.8]}
2... Nf6 {[%clk 0:03:01.3]} 3. Nc3 {[%clk 0:02:45.4]} 3... Bb4 {[%clk 0:03:01]}
4. Bc4 {[%clk 0:02:41.8]} 4... Bxc3 {[%clk 0:02:59.8]} 5. dxc3 {[%clk
0:02:41.7]} 5... d6 {[%clk 0:03:00.1]} 6. O-O {[%clk 0:02:38.6]} 6... h6 {[%clk
0:02:53.3]} 7. Re1 {[%clk 0:02:37.3]} 7... Nbd7 {[%clk 0:02:52.6]} 8. a4 {[%clk
0:02:33.9]} 8... Qe7 {[%clk 0:02:44.4]} 9. a5 {[%clk 0:02:18.2]} 9... a6 {[%clk
0:02:44.3]} 10. Ba2 {[%clk 0:02:17.7]} 10... Nf8 {[%clk 0:02:40.4]} 11. Nd2
{[%clk 0:02:17.6]} 11... Ng6 {[%clk 0:02:35.4]} 12. Nf1 {[%clk 0:02:17.7]} 12...
Be6 {[%clk 0:02:32.9]} 13. Bxe6 {[%clk 0:02:17]} 13... fxe6 {[%clk 0:02:32.9]}
14. f3 {[%clk 0:02:11.5]} 14... O-O {[%clk 0:02:32.6]} 15. Ng3 {[%clk
0:02:11.3]} 15... Nf4 {[%clk 0:02:23.3]} 16. Be3 {[%clk 0:02:10.7]} 16... g5
{[%clk 0:02:13.2]} 17. Qd2 {[%clk 0:02:10.7]} 17... Rad8 {[%clk 0:02:12.6]} 18.
c4 {[%clk 0:02:09.2]} 18... h5 {[%clk 0:02:08.9]} 19. Bxf4 {[%clk 0:02:05.7]}
19... gxf4 {[%clk 0:02:08.4]} 20. Ne2 {[%clk 0:02:04.4]} 20... Kh7 {[%clk
0:02:07.2]} 21. Kh1 {[%clk 0:01:59.3]} 21... Rg8 {[%clk 0:02:07.1]} 22. Rg1
{[%clk 0:01:59.1]} 22... Rg7 {[%clk 0:02:07]} 23. Rad1 {[%clk 0:01:53]} 23... h4
{[%clk 0:01:59.8]} 24. c5 {[%clk 0:01:48.4]} 24... Nh5 {[%clk 0:01:59.2]} 25.
cxd6 {[%clk 0:01:43.7]} 25... cxd6 {[%clk 0:01:59.1]} 26. c4 {[%clk 0:01:40.8]}
26... Qc7 {[%clk 0:01:27.5]} 27. Qc3 {[%clk 0:01:29.1]} 27... Qc5 {[%clk
0:01:24.7]} 28. b4 {[%clk 0:01:21.3]} 28... Qf2 {[%clk 0:01:24.5]} 29. Qe1
{[%clk 0:01:21.8]} 29... Qxe1 {[%clk 0:00:57]} 30. Rgxe1 {[%clk 0:01:22.7]}
30... h3 {[%clk 0:00:49]} 31. gxh3 {[%clk 0:01:18]} 31... Nf6 {[%clk 0:00:48.9]}
32. Nc3 {[%clk 0:01:10.5]} 32... Rc7 {[%clk 0:00:48.6]} 33. c5 {[%clk 0:01:10]}
33... Rcd7 {[%clk 0:00:44.6]} 34. Na4 {[%clk 0:01:04.3]} 34... dxc5 {[%clk
0:00:31.8]} 35. Rxd7+ {[%clk 0:01:05.2]} 35... Rxd7 {[%clk 0:00:31]} 36. Nxc5
{[%clk 0:01:03.7]} 36... Rd4 {[%clk 0:00:26.3]} 37. Rb1 {[%clk 0:01:03.4]} 37...
Kh6 {[%clk 0:00:16.8]} 38. Nxb7 {[%clk 0:01:00.6]} 38... Rd3 {[%clk 0:00:15.4]}
39. Nc5 {[%clk 0:00:57.4]} 39... Rxf3 {[%clk 0:00:15]} 40. Nxa6 {[%clk
0:00:57.3]} 40... Rxh3 {[%clk 0:00:11.8]} 41. Kg2 {[%clk 0:00:54.7]} 41... Ra3
{[%clk 0:00:09.8]} 42. b5 {[%clk 0:00:54.5]} 42... Rxa5 {[%clk 0:00:08.9]} 43.
Nc5 {[%clk 0:00:50.8]} 43... Ra2+ {[%clk 0:00:07.2]} 44. Kf3 {[%clk 0:00:49.2]}
44... Ra3+ {[%clk 0:00:07.5]} 45. Ke2 {[%clk 0:00:49]} 45... Ra2+ {[%clk
0:00:02.5]} 46. Kd3 {[%clk 0:00:47]} 46... f3 {[%clk 0:00:02.6]} 47. b6 {[%clk
0:00:45.8]} 47... Ra8 {[%clk 0:00:01.5]} 48. b7 {[%clk 0:00:45.8]} 48... Rd8+
{[%clk 0:00:02.1]} 49. Ke3 {[%clk 0:00:45.3]} 49... Ng4+ {[%clk 0:00:01.8]} 50.
Kxf3 {[%clk 0:00:45.4]} 50... Nxh2+ {[%clk 0:00:02.3]} 51. Kg3 {[%clk
0:00:45.5]} 1-0

[Event "Late-Titled-Tuesday-Blitz-February-06-2024"]
[Site "Chess.com"]
[Date "2024.02.06"]
[Round "9"]
[White "rionelG"]
[Black "DonJuanEGenaro"]
[Result "0-1"]
[WhiteElo "2223"]
[BlackElo "2091"]
[TimeControl "180+1"]
[EndTime "15:44:39 PST"]
[Termination "DonJuanEGenaro won on time"]

1. e4 {[%clk 0:02:58.6]} 1... c5 {[%clk 0:02:56.7]} 2. Nf3 {[%clk 0:02:58]} 2...
Nc6 {[%clk 0:02:56.2]} 3. d4 {[%clk 0:02:57.5]} 3... cxd4 {[%clk 0:02:55.9]} 4.
Nxd4 {[%clk 0:02:58.4]} 4... e5 {[%clk 0:02:55.9]} 5. Nxc6 {[%clk 0:02:58]} 5...
bxc6 {[%clk 0:02:54.5]} 6. g3 {[%clk 0:02:58.9]} 6... Nf6 {[%clk 0:02:53.7]} 7.
Bg2 {[%clk 0:02:59.6]} 7... Bc5 {[%clk 0:02:51.6]} 8. O-O {[%clk 0:02:59.2]}
8... h6 {[%clk 0:02:51.6]} 9. c4 {[%clk 0:02:55]} 9... Bb7 {[%clk 0:02:50.8]}
10. Nc3 {[%clk 0:02:54.3]} 10... O-O {[%clk 0:02:45.4]} 11. Na4 {[%clk
0:02:37.3]} 11... Bd4 {[%clk 0:02:44.2]} 12. Qe2 {[%clk 0:02:25.5]} 12... d5
{[%clk 0:02:40.7]} 13. cxd5 {[%clk 0:02:09.7]} 13... cxd5 {[%clk 0:02:39.7]} 14.
Be3 {[%clk 0:01:30.4]} 14... dxe4 {[%clk 0:02:32.1]} 15. Nc5 {[%clk 0:01:11.1]}
15... Qb6 {[%clk 0:02:14.5]} 16. Nxb7 {[%clk 0:00:54.4]} 16... Qxb7 {[%clk
0:02:13.7]} 17. Rab1 {[%clk 0:00:53.7]} 17... Rfd8 {[%clk 0:02:11.5]} 18. h3
{[%clk 0:00:51.7]} 18... Rab8 {[%clk 0:02:03]} 19. Rfd1 {[%clk 0:00:41.6]} 19...
Qb5 {[%clk 0:02:00.4]} 20. Qe1 {[%clk 0:00:19.2]} 20... Bxb2 {[%clk 0:01:44.6]}
21. Rxd8+ {[%clk 0:00:18.6]} 21... Rxd8 {[%clk 0:01:43.4]} 22. Bc1 {[%clk
0:00:19]} 22... Bc3 {[%clk 0:01:35]} 23. Rxb5 {[%clk 0:00:15.9]} 23... Bxe1
{[%clk 0:01:34.2]} 24. Be3 {[%clk 0:00:12.8]} 24... a6 {[%clk 0:01:29.2]} 25.
Rxe5 {[%clk 0:00:12]} 25... Bd2 {[%clk 0:01:26.2]} 26. Bxd2 {[%clk 0:00:11.1]}
26... Rxd2 {[%clk 0:01:24.6]} 27. Ra5 {[%clk 0:00:10.7]} 27... Rd6 {[%clk
0:01:22.4]} 28. Bf1 {[%clk 0:00:09.8]} 28... e3 {[%clk 0:01:13.3]} 29. fxe3
{[%clk 0:00:08.5]} 29... Rd2 {[%clk 0:01:12.6]} 30. Rxa6 {[%clk 0:00:07.9]}
30... Ne4 {[%clk 0:01:12.1]} 31. g4 {[%clk 0:00:05.3]} 31... Ng3 {[%clk
0:01:11.6]} 32. Bg2 {[%clk 0:00:05.7]} 32... Ne2+ {[%clk 0:01:10.2]} 33. Kh2
{[%clk 0:00:03.7]} 33... Nc3 {[%clk 0:01:07.8]} 34. Ra8+ {[%clk 0:00:03]} 34...
Kh7 {[%clk 0:01:05.8]} 35. Kg3 {[%clk 0:00:03.5]} 35... g6 {[%clk 0:01:04.5]}
36. Bf3 {[%clk 0:00:03.5]} 36... Rxa2 {[%clk 0:01:03.5]} 37. Rxa2 {[%clk
0:00:01.9]} 37... Nxa2 {[%clk 0:01:03.3]} 38. Bd5 {[%clk 0:00:02.8]} 38... Nc3
{[%clk 0:01:03]} 39. Bxf7 {[%clk 0:00:03.6]} 39... Ne4+ {[%clk 0:01:02.1]} 40.
Kf4 {[%clk 0:00:03.4]} 40... Ng5 {[%clk 0:01:01.4]} 41. Ba2 {[%clk 0:00:04]}
41... Nxh3+ {[%clk 0:01:01.4]} 42. Ke5 {[%clk 0:00:04.3]} 42... Kg7 {[%clk
0:00:59.8]} 43. Bb1 {[%clk 0:00:04.8]} 43... Nf2 {[%clk 0:00:58]} 44. Kf4 {[%clk
0:00:04.7]} 44... g5+ {[%clk 0:00:56.2]} 45. Kf3 {[%clk 0:00:04.3]} 45... Nd1
{[%clk 0:00:55.3]} 46. Be4 {[%clk 0:00:03.1]} 46... Kf6 {[%clk 0:00:55]} 47. Bd5
{[%clk 0:00:03.4]} 47... Nc3 {[%clk 0:00:54.2]} 48. Bc6 {[%clk 0:00:03.7]} 48...
Ke5 {[%clk 0:00:54]} 49. Ba8 {[%clk 0:00:02.2]} 49... Nb5 {[%clk 0:00:53]} 50.
Bc6 {[%clk 0:00:01.9]} 50... Nd6 {[%clk 0:00:51.8]} 0-1